[Event "*** SCC Grand Prix: Titled Tuesday Blitz"]
[Site "Chess.com"]
[Date "2020.07.07"]
[Round "3"]
[White "GjakanTati"]
[Black "Angel_Hranitel_37"]
[Result "1-0"]
[WhiteElo "2580"]
[BlackElo "2383"]
[TimeControl "180+1"]
[EndTime "10:29:44 PDT"]
[Termination "GjakanTati won by resignation"]

1. d4 {[%clk 0:03:00.9]} 1... Nf6 {[%clk 0:02:59.6]} 2. c4 {[%clk 0:03:01.4]}
2... g6 {[%clk 0:03:00]} 3. Nc3 {[%clk 0:03:00.5]} 3... Bg7 {[%clk 0:03:00.5]}
4. e4 {[%clk 0:03:01.2]} 4... d6 {[%clk 0:03:00.5]} 5. Be2 {[%clk 0:03:01.8]}
5... O-O {[%clk 0:03:00.6]} 6. Bg5 {[%clk 0:03:02.1]} 6... c5 {[%clk 0:03:00.1]}
7. d5 {[%clk 0:03:02.5]} 7... Na6 {[%clk 0:02:59]} 8. Nf3 {[%clk 0:03:01.6]}
8... Nc7 {[%clk 0:02:59.2]} 9. O-O {[%clk 0:03:01.9]} 9... a6 {[%clk 0:02:57.9]}
10. a4 {[%clk 0:02:58.9]} 10... Rb8 {[%clk 0:02:57.7]} 11. Qd2 {[%clk
0:02:56.4]} 11... Bd7 {[%clk 0:02:53.7]} 12. Rfe1 {[%clk 0:02:44.8]} 12... b5
{[%clk 0:02:53.3]} 13. cxb5 {[%clk 0:02:44.5]} 13... axb5 {[%clk 0:02:54.2]} 14.
axb5 {[%clk 0:02:44.7]} 14... Nxb5 {[%clk 0:02:55.1]} 15. Bf1 {[%clk 0:02:37.8]}
15... Nd4 {[%clk 0:01:57]} 16. Nxd4 {[%clk 0:02:18.1]} 16... cxd4 {[%clk
0:01:57.9]} 17. Nd1 {[%clk 0:02:09.8]} 17... Qb6 {[%clk 0:01:37.8]} 18. Bd3
{[%clk 0:02:04.1]} 18... Ra8 {[%clk 0:01:19.2]} 19. Rxa8 {[%clk 0:01:54.2]}
19... Rxa8 {[%clk 0:01:20.1]} 20. f3 {[%clk 0:01:51.3]} 20... Ra2 {[%clk
0:01:15.3]} 21. Bc4 {[%clk 0:01:47.5]} 21... Ra1 {[%clk 0:01:01.3]} 22. Bh4
{[%clk 0:01:47.6]} 22... Ba4 {[%clk 0:00:37.4]} 23. b3 {[%clk 0:01:36]} 23...
Bd7 {[%clk 0:00:19.2]} 24. Nb2 {[%clk 0:01:28.6]} 24... Ra2 {[%clk 0:00:17.5]}
25. Kh1 {[%clk 0:01:17.8]} 25... Bh6 {[%clk 0:00:12.6]} 26. Qc2 {[%clk
0:00:50.9]} 26... Qb4 {[%clk 0:00:09.8]} 27. Nd3 {[%clk 0:00:21.8]} 27... Qxe1+
{[%clk 0:00:03.2]} 28. Nxe1 {[%clk 0:00:21.5]} 28... Rxc2 {[%clk 0:00:03.7]} 29.
Nxc2 {[%clk 0:00:22.4]} 29... Bd2 {[%clk 0:00:03.9]} 30. Nxd4 {[%clk 0:00:22]}
30... Kf8 {[%clk 0:00:02.4]} 31. Nc6 {[%clk 0:00:20.5]} 31... Ne8 {[%clk
0:00:03]} 32. b4 {[%clk 0:00:19.8]} 32... Kg7 {[%clk 0:00:03.9]} 33. b5 {[%clk
0:00:20.1]} 33... Be3 {[%clk 0:00:02.9]} 34. Bxe7 {[%clk 0:00:20]} 34... Bc5
{[%clk 0:00:03]} 35. Bd8 {[%clk 0:00:19.7]} 35... Kf8 {[%clk 0:00:02.4]} 36. b6
{[%clk 0:00:19.6]} 36... Bc8 {[%clk 0:00:03.3]} 37. Nb8 {[%clk 0:00:17.5]} 37...
Bb7 {[%clk 0:00:03.2]} 38. Nd7+ {[%clk 0:00:17.4]} 38... Kg8 {[%clk 0:00:02.7]}
39. Nxc5 {[%clk 0:00:17.6]} 39... dxc5 {[%clk 0:00:03.6]} 40. Be7 {[%clk
0:00:18.2]} 40... f6 {[%clk 0:00:02.7]} 41. Bxc5 {[%clk 0:00:18.7]} 41... Kf7
{[%clk 0:00:03.6]} 42. d6+ {[%clk 0:00:18.8]} 42... Kg7 {[%clk 0:00:04.5]} 43.
d7 {[%clk 0:00:19.1]} 43... Bc6 {[%clk 0:00:05.4]} 44. d8=Q {[%clk 0:00:18.4]}
44... h5 {[%clk 0:00:05.9]} 45. Qe7+ {[%clk 0:00:18.2]} 45... Kh6 {[%clk
0:00:05.6]} 46. Be3+ {[%clk 0:00:15.9]} 46... g5 {[%clk 0:00:05.5]} 47. Bf7
{[%clk 0:00:15.7]} 47... Kg7 {[%clk 0:00:03.9]} 48. Bxe8+ {[%clk 0:00:15]} 48...
Kg8 {[%clk 0:00:04]} 49. Qf7+ {[%clk 0:00:15.1]} 49... Kh8 {[%clk 0:00:04.9]}
50. Qxf6+ {[%clk 0:00:15.4]} 1-0

[Event "*** SCC Grand Prix: Titled Tuesday Blitz"]
[Site "Chess.com"]
[Date "2020.07.07"]
[Round "3"]
[White "Diego_FloresQ"]
[Black "Maili15"]
[Result "0-1"]
[WhiteElo "2486"]
[BlackElo "2258"]
[TimeControl "180+1"]
[EndTime "10:29:46 PDT"]
[Termination "Maili15 won by checkmate"]

1. e4 {[%clk 0:02:31.3]} 1... c5 {[%clk 0:02:59.8]} 2. Nf3 {[%clk 0:02:30.5]}
2... d6 {[%clk 0:03:00.1]} 3. d4 {[%clk 0:02:30.3]} 3... cxd4 {[%clk 0:03:01]}
4. Nxd4 {[%clk 0:02:30.2]} 4... Nf6 {[%clk 0:03:01.6]} 5. Nc3 {[%clk 0:02:29.9]}
5... a6 {[%clk 0:03:02]} 6. Bg5 {[%clk 0:02:29.2]} 6... Nbd7 {[%clk 0:03:01.4]}
7. Qe2 {[%clk 0:02:29]} 7... Qc7 {[%clk 0:03:01.2]} 8. f4 {[%clk 0:02:26]} 8...
g6 {[%clk 0:03:01]} 9. g3 {[%clk 0:02:21]} 9... Bg7 {[%clk 0:03:01]} 10. Bg2
{[%clk 0:02:20.7]} 10... h6 {[%clk 0:02:58.9]} 11. Bh4 {[%clk 0:02:20.1]} 11...
O-O {[%clk 0:02:46.2]} 12. O-O-O {[%clk 0:02:18.8]} 12... Rb8 {[%clk 0:02:45.3]}
13. Rhe1 {[%clk 0:02:18.4]} 13... e6 {[%clk 0:02:34.7]} 14. g4 {[%clk
0:01:42.3]} 14... e5 {[%clk 0:02:30.7]} 15. fxe5 {[%clk 0:01:38]} 15... dxe5
{[%clk 0:02:25]} 16. Nb3 {[%clk 0:01:38.3]} 16... Nb6 {[%clk 0:01:55.7]} 17. Bf3
{[%clk 0:01:21.7]} 17... Be6 {[%clk 0:01:52.8]} 18. Bg3 {[%clk 0:01:18.2]} 18...
Nc4 {[%clk 0:01:45.4]} 19. h4 {[%clk 0:01:09.8]} 19... Rfc8 {[%clk 0:01:37.2]}
20. Nd5 {[%clk 0:01:00]} 20... Bxd5 {[%clk 0:01:10.6]} 21. exd5 {[%clk
0:01:00.9]} 21... Nd7 {[%clk 0:00:53.7]} 22. Be4 {[%clk 0:01:00.2]} 22... Nd6
{[%clk 0:00:49.9]} 23. Rf1 {[%clk 0:00:38.3]} 23... a5 {[%clk 0:00:44.9]} 24.
Kb1 {[%clk 0:00:34.9]} 24... a4 {[%clk 0:00:44.5]} 25. Nc1 {[%clk 0:00:20.1]}
25... Nxe4 {[%clk 0:00:35.2]} 26. Qxe4 {[%clk 0:00:19.2]} 26... Nf6 {[%clk
0:00:34]} 27. Qxa4 {[%clk 0:00:16.3]} 27... b5 {[%clk 0:00:28.9]} 28. Qb3 {[%clk
0:00:16.4]} 28... Nxg4 {[%clk 0:00:27.6]} 29. Rde1 {[%clk 0:00:11.2]} 29... Qc4
{[%clk 0:00:21]} 30. Nd3 {[%clk 0:00:09.7]} 30... f6 {[%clk 0:00:12.9]} 31. Rg1
{[%clk 0:00:06.7]} 31... h5 {[%clk 0:00:12.5]} 32. Rgf1 {[%clk 0:00:06]} 32...
Rb7 {[%clk 0:00:12.3]} 33. Re2 {[%clk 0:00:05.8]} 33... Rbc7 {[%clk 0:00:11.8]}
34. Rd1 {[%clk 0:00:06]} 34... Rd7 {[%clk 0:00:10.2]} 35. Nb4 {[%clk 0:00:05.5]}
35... f5 {[%clk 0:00:08.8]} 36. Be1 {[%clk 0:00:05.1]} 36... e4 {[%clk 0:00:08]}
37. Qg3 {[%clk 0:00:04.7]} 37... Qc7 {[%clk 0:00:04.8]} 38. Qb3 {[%clk 0:00:04]}
38... Qc4 {[%clk 0:00:04.1]} 39. Qg3 {[%clk 0:00:03.9]} 39... Be5 {[%clk
0:00:04.2]} 40. Qg1 {[%clk 0:00:03.6]} 40... f4 {[%clk 0:00:03.4]} 41. Nc6
{[%clk 0:00:04]} 41... Rxc6 {[%clk 0:00:02.9]} 42. Red2 {[%clk 0:00:02.1]} 42...
Rcd6 {[%clk 0:00:02.9]} 43. Qf1 {[%clk 0:00:01.5]} 43... e3 {[%clk 0:00:02.9]}
44. Qxc4 {[%clk 0:00:01.7]} 44... bxc4 {[%clk 0:00:03.8]} 45. Re2 {[%clk
0:00:02.6]} 45... f3 {[%clk 0:00:03.8]} 46. Rh2 {[%clk 0:00:02.5]} 46... e2
{[%clk 0:00:04.1]} 47. Rh3 {[%clk 0:00:03.4]} 47... exd1=Q# {[%clk 0:00:03.5]}
0-1

[Event "*** SCC Grand Prix: Titled Tuesday Blitz"]
[Site "Chess.com"]
[Date "2020.07.07"]
[Round "3"]
[White "AleksanderHnydiuk"]
[Black "MergenKakabaev"]
[Result "0-1"]
[WhiteElo "2584"]
[BlackElo "2418"]
[TimeControl "180+1"]
[EndTime "10:29:47 PDT"]
[Termination "MergenKakabaev won by resignation"]

1. Nf3 {[%clk 0:03:00]} 1... Nf6 {[%clk 0:02:59.6]} 2. c4 {[%clk 0:02:59]} 2...
c6 {[%clk 0:02:59.1]} 3. d4 {[%clk 0:02:58.2]} 3... d5 {[%clk 0:02:57.9]} 4. Qc2
{[%clk 0:02:58.8]} 4... e6 {[%clk 0:02:57.3]} 5. g3 {[%clk 0:02:58.4]} 5... Nbd7
{[%clk 0:02:57.4]} 6. Bg2 {[%clk 0:02:58.6]} 6... Be7 {[%clk 0:02:57.5]} 7. O-O
{[%clk 0:02:58.6]} 7... b6 {[%clk 0:02:57.8]} 8. Nbd2 {[%clk 0:02:59]} 8... Bb7
{[%clk 0:02:58]} 9. e4 {[%clk 0:02:59.1]} 9... dxe4 {[%clk 0:02:58.2]} 10. Nxe4
{[%clk 0:02:59.3]} 10... Nxe4 {[%clk 0:02:59.1]} 11. Qxe4 {[%clk 0:02:59.9]}
11... O-O {[%clk 0:02:59.4]} 12. Bf4 {[%clk 0:03:00.4]} 12... Qc8 {[%clk
0:02:59.3]} 13. Rfd1 {[%clk 0:02:55.5]} 13... c5 {[%clk 0:02:57.2]} 14. d5
{[%clk 0:02:55.6]} 14... Bf6 {[%clk 0:02:57.2]} 15. Qc2 {[%clk 0:02:39.1]} 15...
exd5 {[%clk 0:02:55.5]} 16. cxd5 {[%clk 0:02:40]} 16... Re8 {[%clk 0:02:52.5]}
17. Ng5 {[%clk 0:02:35.4]} 17... g6 {[%clk 0:02:50.2]} 18. Ne4 {[%clk 0:02:34]}
18... Be7 {[%clk 0:02:42.6]} 19. Qc3 {[%clk 0:02:31]} 19... Qd8 {[%clk 0:02:19]}
20. Bh6 {[%clk 0:02:07.4]} 20... Bf8 {[%clk 0:02:13.4]} 21. Bxf8 {[%clk
0:02:04.5]} 21... Rxf8 {[%clk 0:02:09.2]} 22. Bh3 {[%clk 0:01:55.2]} 22... f5
{[%clk 0:02:04.8]} 23. Nd6 {[%clk 0:01:52.7]} 23... Rb8 {[%clk 0:02:04.1]} 24.
Nxb7 {[%clk 0:01:49.3]} 24... Rxb7 {[%clk 0:02:05]} 25. d6 {[%clk 0:01:47.9]}
25... Qf6 {[%clk 0:01:59.5]} 26. Bg2 {[%clk 0:01:28.6]} 26... Qxc3 {[%clk
0:01:55.9]} 27. bxc3 {[%clk 0:01:29.5]} 27... Rbb8 {[%clk 0:01:55.9]} 28. Re1
{[%clk 0:01:25.9]} 28... Nf6 {[%clk 0:01:19.4]} 29. Re7 {[%clk 0:01:22.6]} 29...
Rf7 {[%clk 0:01:17.5]} 30. Rae1 {[%clk 0:01:17]} 30... Rd8 {[%clk 0:01:16.7]}
31. Rxf7 {[%clk 0:01:16.6]} 31... Kxf7 {[%clk 0:01:16.5]} 32. Re7+ {[%clk
0:01:17.1]} 32... Kf8 {[%clk 0:01:14.9]} 33. Rxa7 {[%clk 0:01:13]} 33... Rxd6
{[%clk 0:01:14.7]} 34. Bf1 {[%clk 0:00:50.3]} 34... Ne4 {[%clk 0:01:00.8]} 35.
Rxh7 {[%clk 0:00:31.6]} 35... Nxc3 {[%clk 0:00:56.8]} 36. Bc4 {[%clk 0:00:29.9]}
36... Ne4 {[%clk 0:00:55.6]} 37. Rf7+ {[%clk 0:00:22.2]} 37... Ke8 {[%clk
0:00:55.4]} 38. Rg7 {[%clk 0:00:22.4]} 38... Kf8 {[%clk 0:00:46.4]} 39. Rg8+
{[%clk 0:00:21.9]} 39... Ke7 {[%clk 0:00:46.7]} 40. h4 {[%clk 0:00:19.8]} 40...
Nd2 {[%clk 0:00:42.3]} 41. Bb5 {[%clk 0:00:16.8]} 41... Kf6 {[%clk 0:00:35.3]}
42. a4 {[%clk 0:00:14.7]} 42... Nf3+ {[%clk 0:00:33.3]} 43. Kg2 {[%clk
0:00:14.4]} 43... Nd4 {[%clk 0:00:33.5]} 44. Rf8+ {[%clk 0:00:10.4]} 44... Kg7
{[%clk 0:00:32.6]} 45. Rc8 {[%clk 0:00:10.2]} 45... Nxb5 {[%clk 0:00:30.7]} 46.
axb5 {[%clk 0:00:11.1]} 46... Kf6 {[%clk 0:00:31]} 47. Rc7 {[%clk 0:00:11]}
47... Ke5 {[%clk 0:00:30.5]} 48. Kf3 {[%clk 0:00:10.3]} 48... Kd4 {[%clk
0:00:30.6]} 49. Kf4 {[%clk 0:00:08.8]} 49... c4 {[%clk 0:00:30.6]} 50. f3 {[%clk
0:00:09]} 50... c3 {[%clk 0:00:30.3]} 51. g4 {[%clk 0:00:09.2]} 51... fxg4
{[%clk 0:00:29.8]} 52. fxg4 {[%clk 0:00:10.1]} 52... Kd3 {[%clk 0:00:29.9]} 53.
Kf3 {[%clk 0:00:08.1]} 53... c2 {[%clk 0:00:29.8]} 54. h5 {[%clk 0:00:07.9]}
54... gxh5 {[%clk 0:00:29.5]} 55. gxh5 {[%clk 0:00:08.8]} 55... Kd2 {[%clk
0:00:29.4]} 56. Kg4 {[%clk 0:00:05.1]} 56... c1=Q {[%clk 0:00:25.3]} 0-1

[Event "*** SCC Grand Prix: Titled Tuesday Blitz"]
[Site "Chess.com"]
[Date "2020.07.07"]
[Round "3"]
[White "Chesswizard_2007"]
[Black "Antipov_Mikhail_Al"]
[Result "0-1"]
[WhiteElo "2451"]
[BlackElo "2823"]
[TimeControl "180+1"]
[EndTime "10:29:48 PDT"]
[Termination "Antipov_Mikhail_Al won by checkmate"]

1. d4 {[%clk 0:03:00.9]} 1... Nf6 {[%clk 0:02:59.3]} 2. c4 {[%clk 0:03:00.9]}
2... g6 {[%clk 0:02:56.8]} 3. f3 {[%clk 0:03:00.4]} 3... e6 {[%clk 0:02:55.2]}
4. e4 {[%clk 0:02:58.5]} 4... d5 {[%clk 0:02:55.5]} 5. Nc3 {[%clk 0:02:56.7]}
5... dxe4 {[%clk 0:02:46.7]} 6. fxe4 {[%clk 0:02:57.6]} 6... c5 {[%clk
0:02:47.3]} 7. d5 {[%clk 0:02:57.9]} 7... Bg7 {[%clk 0:02:47]} 8. Nf3 {[%clk
0:02:56.9]} 8... O-O {[%clk 0:02:41.3]} 9. Be2 {[%clk 0:02:56.2]} 9... exd5
{[%clk 0:02:41.1]} 10. exd5 {[%clk 0:02:57.1]} 10... Re8 {[%clk 0:02:25.7]} 11.
O-O {[%clk 0:02:57.2]} 11... Bg4 {[%clk 0:02:04]} 12. h3 {[%clk 0:02:55.7]}
12... Bxf3 {[%clk 0:02:02.5]} 13. Bxf3 {[%clk 0:02:56.6]} 13... Nbd7 {[%clk
0:01:58.1]} 14. Bf4 {[%clk 0:02:45.3]} 14... Ne5 {[%clk 0:01:54.9]} 15. Qb3
{[%clk 0:02:37.4]} 15... b6 {[%clk 0:01:09.4]} 16. a4 {[%clk 0:02:28.4]} 16...
Nfd7 {[%clk 0:00:51.6]} 17. Nb5 {[%clk 0:02:23.3]} 17... a6 {[%clk 0:00:32.8]}
18. Nd6 {[%clk 0:01:59]} 18... Rf8 {[%clk 0:00:32.9]} 19. Ne4 {[%clk 0:01:57.7]}
19... h6 {[%clk 0:00:27.5]} 20. Qc2 {[%clk 0:01:51.8]} 20... f5 {[%clk
0:00:25.6]} 21. Nd2 {[%clk 0:01:46.7]} 21... g5 {[%clk 0:00:20.7]} 22. Bh2
{[%clk 0:01:42]} 22... f4 {[%clk 0:00:20.2]} 23. Be4 {[%clk 0:01:38.9]} 23...
Nf7 {[%clk 0:00:20.1]} 24. Nf3 {[%clk 0:01:38.1]} 24... Nd6 {[%clk 0:00:19.8]}
25. Bh7+ {[%clk 0:01:38.3]} 25... Kh8 {[%clk 0:00:20.2]} 26. Bd3 {[%clk
0:01:39.2]} 26... Qf6 {[%clk 0:00:20.2]} 27. Rab1 {[%clk 0:01:37.7]} 27... a5
{[%clk 0:00:19.7]} 28. Kh1 {[%clk 0:01:37.2]} 28... Nb8 {[%clk 0:00:19.1]} 29.
Rfe1 {[%clk 0:01:28.5]} 29... Na6 {[%clk 0:00:19]} 30. Ne5 {[%clk 0:01:28.8]}
30... Nb4 {[%clk 0:00:16.7]} 31. Qd2 {[%clk 0:01:24.4]} 31... Rfe8 {[%clk
0:00:15.8]} 32. Nf3 {[%clk 0:00:53.6]} 32... Rxe1+ {[%clk 0:00:06.7]} 33. Nxe1
{[%clk 0:00:54.5]} 33... Re8 {[%clk 0:00:06.1]} 34. Nf3 {[%clk 0:00:53.5]} 34...
Re3 {[%clk 0:00:05.9]} 35. Bf1 {[%clk 0:00:51.2]} 35... Ne4 {[%clk 0:00:06.1]}
36. Qc1 {[%clk 0:00:44.8]} 36... h5 {[%clk 0:00:04.2]} 37. Bg1 {[%clk 0:00:45]}
37... Ng3+ {[%clk 0:00:03.6]} 38. Kh2 {[%clk 0:00:45.6]} 38... Re8 {[%clk
0:00:03]} 39. h4 {[%clk 0:00:37.1]} 39... g4 {[%clk 0:00:03.2]} 40. Ng5 {[%clk
0:00:37.3]} 40... Bh6 {[%clk 0:00:03.3]} 41. Bf2 {[%clk 0:00:35.9]} 41... Bxg5
{[%clk 0:00:02.8]} 42. hxg5 {[%clk 0:00:35.2]} 42... Nxf1+ {[%clk 0:00:03.2]}
43. Qxf1 {[%clk 0:00:34.6]} 43... Qxg5 {[%clk 0:00:04.1]} 44. g3 {[%clk
0:00:23.5]} 44... h4 {[%clk 0:00:03.3]} 45. gxh4 {[%clk 0:00:16.6]} 45... g3+
{[%clk 0:00:03.7]} 46. Kg2 {[%clk 0:00:12.4]} 46... Qg4 {[%clk 0:00:02.8]} 47.
Re1 {[%clk 0:00:09.2]} 47... f3+ {[%clk 0:00:03.2]} 48. Kg1 {[%clk 0:00:07.9]}
48... gxf2+ {[%clk 0:00:03.5]} 49. Kxf2 {[%clk 0:00:08.8]} 49... Nd3+ {[%clk
0:00:03.1]} 50. Qxd3 {[%clk 0:00:08.1]} 50... Qg2# {[%clk 0:00:04]} 0-1

[Event "*** SCC Grand Prix: Titled Tuesday Blitz"]
[Site "Chess.com"]
[Date "2020.07.07"]
[Round "3"]
[White "2nd_life"]
[Black "Beca95"]
[Result "1-0"]
[WhiteElo "2471"]
[BlackElo "2892"]
[TimeControl "180+1"]
[EndTime "10:29:50 PDT"]
[Termination "2nd_life won by resignation"]

1. e4 {[%clk 0:03:00.9]} 1... c5 {[%clk 0:02:58.8]} 2. Nf3 {[%clk 0:02:57.8]}
2... Nf6 {[%clk 0:02:59.4]} 3. e5 {[%clk 0:02:57.3]} 3... Nd5 {[%clk 0:02:59.5]}
4. Nc3 {[%clk 0:02:57.4]} 4... e6 {[%clk 0:02:59.6]} 5. Nxd5 {[%clk 0:02:55.7]}
5... exd5 {[%clk 0:03:00.5]} 6. d4 {[%clk 0:02:55.9]} 6... Nc6 {[%clk
0:03:00.8]} 7. dxc5 {[%clk 0:02:55]} 7... Bxc5 {[%clk 0:03:01.5]} 8. Qxd5 {[%clk
0:02:50.1]} 8... d6 {[%clk 0:03:01.9]} 9. exd6 {[%clk 0:02:23.7]} 9... Qb6
{[%clk 0:03:00.5]} 10. Bd3 {[%clk 0:02:16.1]} 10... Bxf2+ {[%clk 0:02:56.8]} 11.
Kf1 {[%clk 0:02:00.7]} 11... Be6 {[%clk 0:02:56.3]} 12. d7+ {[%clk 0:01:44.7]}
12... Bxd7 {[%clk 0:02:52.5]} 13. Bg5 {[%clk 0:01:18.3]} 13... Be6 {[%clk
0:02:50.7]} 14. Qd6 {[%clk 0:01:13.4]} 14... Bc5 {[%clk 0:02:42.7]} 15. Qg3
{[%clk 0:01:05.1]} 15... h6 {[%clk 0:02:41.3]} 16. Bf4 {[%clk 0:00:48.8]} 16...
O-O-O {[%clk 0:02:37.8]} 17. Re1 {[%clk 0:00:42.4]} 17... g5 {[%clk 0:02:35.6]}
18. Bc1 {[%clk 0:00:40]} 18... Nb4 {[%clk 0:02:28.7]} 19. Ne5 {[%clk 0:00:34.8]}
19... Rhe8 {[%clk 0:02:00.7]} 20. a3 {[%clk 0:00:18.3]} 20... Nxd3 {[%clk
0:01:59]} 21. Nxd3 {[%clk 0:00:19.2]} 21... Bd4 {[%clk 0:01:41.9]} 22. Be3
{[%clk 0:00:18]} 22... f5 {[%clk 0:01:40.4]} 23. Bxd4 {[%clk 0:00:17]} 23...
Qxd4 {[%clk 0:01:41.3]} 24. Qf2 {[%clk 0:00:16.8]} 24... Qa4 {[%clk 0:01:04.4]}
25. h4 {[%clk 0:00:13]} 25... g4 {[%clk 0:00:40.6]} 26. Qc5+ {[%clk 0:00:11.8]}
26... Kb8 {[%clk 0:00:38.3]} 27. Kf2 {[%clk 0:00:11.7]} 27... g3+ {[%clk
0:00:23.9]} 28. Kxg3 {[%clk 0:00:09.7]} 28... Qg4+ {[%clk 0:00:22.1]} 29. Kf2
{[%clk 0:00:09.9]} 29... Bd5 {[%clk 0:00:22.3]} 30. Rh2 {[%clk 0:00:04.4]} 30...
Bc6 {[%clk 0:00:16.1]} 31. Rxe8 {[%clk 0:00:03.6]} 31... Rxe8 {[%clk 0:00:16.7]}
32. Qd6+ {[%clk 0:00:03.9]} 32... Kc8 {[%clk 0:00:13.1]} 33. Qf4 {[%clk
0:00:04.7]} 33... Qe2+ {[%clk 0:00:10.7]} 34. Kg1 {[%clk 0:00:05.1]} 34... Qd1+
{[%clk 0:00:06.2]} 35. Qf1 {[%clk 0:00:03.7]} 35... Qxc2 {[%clk 0:00:06.6]} 36.
Qxf5+ {[%clk 0:00:03.9]} 36... Kb8 {[%clk 0:00:06.7]} 37. Rh3 {[%clk 0:00:04.3]}
37... Ka8 {[%clk 0:00:02.2]} 38. Rg3 {[%clk 0:00:02.9]} 38... Qd2 {[%clk
0:00:02.4]} 39. Kh2 {[%clk 0:00:03.4]} 39... Qc2 {[%clk 0:00:01.9]} 40. Qg6
{[%clk 0:00:03.8]} 40... Qd2 {[%clk 0:00:01.4]} 41. Nb4 {[%clk 0:00:03.8]} 41...
Bb5 {[%clk 0:00:01.5]} 42. Rg4 {[%clk 0:00:01.7]} 42... Qd7 {[%clk 0:00:01]} 43.
Rg3 {[%clk 0:00:02]} 43... Rd8 {[%clk 0:00:01.3]} 44. Qxh6 {[%clk 0:00:02.4]}
44... Qc7 {[%clk 0:00:01.7]} 45. Qg5 {[%clk 0:00:03.1]} 45... a6 {[%clk
0:00:01.5]} 46. Nd5 {[%clk 0:00:03.5]} 46... Qc1 {[%clk 0:00:01.9]} 47. Qxd8+
{[%clk 0:00:03]} 47... Ka7 {[%clk 0:00:01.7]} 48. Qb6+ {[%clk 0:00:03.9]} 48...
Kb8 {[%clk 0:00:02.2]} 49. Rg8+ {[%clk 0:00:04.8]} 1-0

[Event "*** SCC Grand Prix: Titled Tuesday Blitz"]
[Site "Chess.com"]
[Date "2020.07.07"]
[Round "3"]
[White "Bulldog167"]
[Black "Orest_Vovk"]
[Result "0-1"]
[WhiteElo "2723"]
[BlackElo "2518"]
[TimeControl "180+1"]
[EndTime "10:29:51 PDT"]
[Termination "Orest_Vovk won by resignation"]

1. d4 {[%clk 0:03:00.9]} 1... h6 {[%clk 0:02:59.6]} 2. c4 {[%clk 0:02:58.9]}
2... g5 {[%clk 0:02:59.2]} 3. Nc3 {[%clk 0:02:58.2]} 3... Bg7 {[%clk 0:02:57.8]}
4. e4 {[%clk 0:02:58.2]} 4... c5 {[%clk 0:02:57.5]} 5. d5 {[%clk 0:02:58.1]}
5... Bxc3+ {[%clk 0:02:57.1]} 6. bxc3 {[%clk 0:02:59]} 6... d6 {[%clk
0:02:56.9]} 7. h4 {[%clk 0:02:56.8]} 7... Qa5 {[%clk 0:02:56.8]} 8. hxg5 {[%clk
0:02:49.6]} 8... hxg5 {[%clk 0:02:57.7]} 9. Rxh8 {[%clk 0:02:43.2]} 9... Qxc3+
{[%clk 0:02:57.5]} 10. Bd2 {[%clk 0:02:36.6]} 10... Qxh8 {[%clk 0:02:58.4]} 11.
Rc1 {[%clk 0:02:37.1]} 11... g4 {[%clk 0:02:51.5]} 12. Ne2 {[%clk 0:02:28]}
12... Nd7 {[%clk 0:02:45]} 13. Bc3 {[%clk 0:02:26.4]} 13... Ne5 {[%clk
0:02:44.2]} 14. Ng3 {[%clk 0:02:20.9]} 14... Bd7 {[%clk 0:02:35.6]} 15. Qb3
{[%clk 0:02:20.1]} 15... b6 {[%clk 0:02:28.4]} 16. a4 {[%clk 0:02:16.6]} 16...
Nf6 {[%clk 0:02:16.6]} 17. a5 {[%clk 0:02:11.3]} 17... Nh5 {[%clk 0:02:09.9]}
18. Nxh5 {[%clk 0:02:06.1]} 18... Qxh5 {[%clk 0:02:09]} 19. axb6 {[%clk
0:02:06]} 19... axb6 {[%clk 0:02:08.4]} 20. Qxb6 {[%clk 0:02:04.1]} 20... f6
{[%clk 0:02:04.1]} 21. Qb2 {[%clk 0:01:53]} 21... Ra4 {[%clk 0:01:48.6]} 22. Bd2
{[%clk 0:01:50]} 22... Qh1 {[%clk 0:01:39.5]} 23. Qb3 {[%clk 0:01:39.2]} 23...
Kf7 {[%clk 0:01:17.4]} 24. Bf4 {[%clk 0:01:38.3]} 24... Rb4 {[%clk 0:01:11.3]}
25. Qg3 {[%clk 0:00:52.6]} 25... Nxc4 {[%clk 0:00:59.8]} 26. Qc3 {[%clk
0:00:44.6]} 26... Ne5 {[%clk 0:00:53.3]} 27. Bxe5 {[%clk 0:00:43.5]} 27... fxe5
{[%clk 0:00:51.9]} 28. Qe3 {[%clk 0:00:42.9]} 28... Bb5 {[%clk 0:00:47.4]} 29.
Kd2 {[%clk 0:00:38.8]} 29... Bxf1 {[%clk 0:00:45.2]} 30. Qg5 {[%clk 0:00:39]}
30... Rd4+ {[%clk 0:00:42.2]} 31. Kc3 {[%clk 0:00:31.1]} 31... Rc4+ {[%clk
0:00:25.9]} 32. Kd2 {[%clk 0:00:27.4]} 32... Qh7 {[%clk 0:00:16.1]} 33. Rxf1
{[%clk 0:00:26.4]} 33... Rxe4 {[%clk 0:00:15]} 34. Kc3 {[%clk 0:00:19.2]} 34...
Rd4 {[%clk 0:00:13.2]} 35. Qe3 {[%clk 0:00:18.2]} 35... Qe4 {[%clk 0:00:11.1]}
36. Rh1 {[%clk 0:00:05.9]} 36... Qxe3+ {[%clk 0:00:04.4]} 37. fxe3 {[%clk
0:00:06.8]} 37... Rxd5 {[%clk 0:00:05.1]} 38. Rh4 {[%clk 0:00:07.2]} 38... Rd1
{[%clk 0:00:05.2]} 39. Rxg4 {[%clk 0:00:07.5]} 39... Rc1+ {[%clk 0:00:05.3]} 40.
Kd2 {[%clk 0:00:08]} 40... Rg1 {[%clk 0:00:06.1]} 41. Rh4 {[%clk 0:00:08.8]}
41... Ke6 {[%clk 0:00:06.5]} 42. Rh2 {[%clk 0:00:08.2]} 42... Kd5 {[%clk
0:00:06.2]} 43. Kd3 {[%clk 0:00:08.4]} 43... c4+ {[%clk 0:00:06.6]} 44. Ke2
{[%clk 0:00:09.1]} 44... Kc5 {[%clk 0:00:05.5]} 45. Kf2 {[%clk 0:00:09.4]} 45...
Ra1 {[%clk 0:00:06.2]} 46. Kf3 {[%clk 0:00:08.7]} 46... d5 {[%clk 0:00:05.8]}
47. g4 {[%clk 0:00:08.8]} 47... e4+ {[%clk 0:00:05.6]} 48. Kf4 {[%clk
0:00:08.5]} 48... c3 {[%clk 0:00:06.2]} 49. g5 {[%clk 0:00:07.1]} 49... Rg1
{[%clk 0:00:06.2]} 50. Kf5 {[%clk 0:00:06.6]} 50... Kc4 {[%clk 0:00:05.2]} 51.
Rg2 {[%clk 0:00:06.1]} 51... Rxg2 {[%clk 0:00:04.7]} 0-1